Workbook

Sheet Eingabe
B2: =Translation!A3 -> Heat demand by consumption
B3: IMT/TR 09/12
D5: =(Translation!A4) -> Building
D7: =(Translation!A5) -> Location (enter city)
D9: =Translation!A6 -> Year of build
D11: =(Translation!A11) -> Type of building
D13: =(Translation!A29) -> Average room temperature
D15: =(Translation!A30) -> Heating system
D17: =(Translation!A31) -> Heat generator
D19: =Zwischenwerte!I7 -> Consumption in m³/year | E19: 2000
D21: =(Translation!A41) -> Usage
D23: =(Translation!A44) -> Age of heating system
D25: =(Translation!A48) -> DHW production
D27: =(Translation!A49) -> DHW type
D29: =Zwischenwerte!O7 -> Number of persons | E29: 4
D31: =(Translation!A55) -> Demand period
D33: =(Translation!A68) -> Summary
D35: =Translation!A69 -> Heat demand * | E35: =IF(OR(Zwischenwerte!G70<0,ISERROR(Zwischenwerte!G72)),"---",FIXED(Zwischenwerte!G72,1)&" KW") -> 9,9 KW
C37: * | D37: =(Translation!A70) -> Calculation based on DIN EN 12831 Supplement 2, may 2010
D38: =Translation!A71 -> 0

Sheet Zwischenwerte (hidden)
E2: Comoboxen
H3: Energieverbrauch | N3: Gebäudetyp /WW-Bedarf | R3: Art WWB | T3: Bedarfzeitraum WWB | V3: Sprache ändern
E4: Standort | F4: Baujahr | G4: Raumtemp | L4: Nutzungsart | M4: Alter Heizung
H5: Combobox | I5: Einheit | J5: Heizwert | K5: Jährlicher Verbrauch | N5: Gebäudetyp /WW-Bedarf | O5: spez Bedarf (Bezug) | P5: Durchschnittsbedarf | Q5: Spez. Bedarf (Wert) | R5: Combobox | T5: Combobox | U5: d/a
E7: Holzminden | F7: 1980 - 1994 | G7: 20 °C | H7: Gas boiler | I7: =VLOOKUP(H7,H9:I28,2,FALSE) -> Consumption in m³/year | J7: =VLOOKUP(H7,H9:J28,3,FALSE) -> 10.4 | K7: =Eingabe!E19 -> 2000 | L7: Heating only | M7: From 1995 | N7: Einfamilienhaus | O7: =VLOOKUP(N7,N9:O28,2,FALSE) -> Number of persons | P7: =VLOOKUP(N7,N9:P29,3,FALSE) -> 1.1 | Q7: =Eingabe!E29 -> 4 | R7: Building-central without circulation | T7: All year | U7: =VLOOKUP(T7,T9:U29,2,FALSE) -> 365 | V7: 2 | W7: =VLOOKUP(V7,V9:W29,2,FALSE) -> | English
F10: =(Translation!A7) -> From 2009 | G10: 18 °C | H10: =Translation!A32 -> Gas boiler | I10: =Translation!A73 -> Consumption in m³/year | J10: 10.4 | L10: =(Translation!A42) -> Heating only | M10: =Translation!A47 -> From 1995 | N10: Einfamilienhaus | O10: =Translation!A76 -> Number of persons | P10: 1.1 | R10: =(Translation!A50) -> Building-central without circulation | T10: =(Translation!A56) -> All year | U10: 365 | V10: 1 | W10: | Deutsch
F11: =(Translation!A8) -> 1995 - 2008 | G11: 19 °C | H11: =Translation!A33 -> Oil boiler | I11: =Translation!A72 -> Consumption in l/year | J11: 10.08 | L11: =(Translation!A43) -> Heating | DHW | M11: =Translation!A46 -> 1980 - 1994 | N11: Mehrfamilienhaus | O11: =Translation!A76 -> Number of persons | P11: 1.1 | R11: =(Translation!A51) -> Building-central with circulation | T11: =(Translation!A57) -> 1 month / year | U11: 30.4 | V11: 2 | W11: | English
F12: =(Translation!A9) -> 1980 - 1994 | G12: 20 °C | H12: =Translation!A34 -> Condensing gas boiler | I12: =Translation!A73 -> Consumption in m³/year | J12: 10.4 | M12: =Translation!A45 -> Before 1980 | N12: =(Translation!A13) -> Office building | O12: =Translation!A76 -> Number of persons | P12: 0.4 | R12: =Translation!A52 -> Apartment-central | T12: =(Translation!A58) -> 2 months / year | U12: 60.8 | V12: 3 | W12: | Nederlands
F13: =(Translation!A10) -> Before 1980 | G13: 21 °C | H13: =Translation!A35 -> Condensing oil boiler | I13: =Translation!A72 -> Consumption in l/year | J13: 10.08 | N13: =(Translation!A14) -> Hospital | O13: =Translation!A77 -> Number of beds | P13: 6 | R13: =(Translation!A53) -> Apartment-decentral | T13: =(Translation!A59) -> 3 months / year | U13: 91.2
G14: 22 °C | H14: =Translation!A36 -> Storage heater | I14: =Translation!A74 -> Consumption in kWh/year | J14: 1 | N14: =(Translation!A15) -> School (without showers) | O14: =Translation!A76 -> Number of persons | P14: 0.4 | T14: =(Translation!A60) -> 4 months / year | U14: 121.6
H15: =Translation!A37 -> Electric heating | I15: =Translation!A74 -> Consumption in kWh/year | J15: 1 | N15: =(Translation!A16) -> School (with showers) | O15: =Translation!A76 -> Number of persons | P15: 1.5 | T15: =(Translation!A61) -> 5 months / year | U15: 152
H16: =Translation!A38 -> District heating | I16: =Translation!A74 -> Consumption in kWh/year | J16: 1 | N16: =(Translation!A17) -> Retailer / Store | O16: =Translation!A78 -> Number of employees | P16: 1 | T16: =(Translation!A62) -> 6 months / year | U16: 182.4
H17: =Translation!A39 -> Pellet | I17: =Translation!A75 -> Consumption in kg/year | J17: 4.9 | N17: =(Translation!A18) -> Garage (with showers) | O17: =Translation!A78 -> Number of employees | P17: 1.8 | T17: =(Translation!A63) -> 7 months / year | U17: 212.8
H18: =Translation!A40 -> Other | I18: =Translation!A74 -> Consumption in kWh/year | J18: 1 | N18: =(Translation!A19) -> Hotel (Standard) | O18: =Translation!A77 -> Number of beds | P18: 1.9 | T18: =(Translation!A64) -> 8 months / year | U18: 243.2
N19: =(Translation!A20) -> Hotel (High standard) | O19: =Translation!A77 -> Number of beds | P19: 3.5 | T19: =(Translation!A65) -> 9 months / year | U19: 273.6
N20: =(Translation!A21) -> Hotel (Luxury) | O20: =Translation!A77 -> Number of beds | P20: 5.5 | T20: =(Translation!A66) -> 10 months / year | U20: 304
N21: =(Translation!A22) -> Restaurant | O21: =Translation!A79 -> Number of seats | P21: 1.1 | T21: =(Translation!A67) -> 11 months / year | U21: 334.4
N22: =(Translation!A23) -> Nursing home | O22: =Translation!A76 -> Number of persons | P22: 2.3
N23: =(Translation!A24) -> Barracks | O23: =Translation!A76 -> Number of persons | P23: 1.8
N24: =(Translation!A25) -> Sports facility (with showers) | O24: =Translation!A76 -> Number of persons | P24: 1.8
N25: =(Translation!A26) -> Bakery | O25: =Translation!A78 -> Number of employees | P25: 5
N26: =(Translation!A27) -> Hairdresser | O26: =Translation!A78 -> Number of employees | P26: 6
N27: =(Translation!A28) -> Butcher (with production) | O27: =Translation!A78 -> Number of employees | P27: 18
E28: Stadt eingetragen
E29: =IF(OR(E7="",ISERROR(VLOOKUP(E7,Klimadaten!B:B,1,FALSE))),FALSE,TRUE) -> TRUE
E55: Belastungsgrad | H55: Heizstunden proJahr | K55: Nutzungsgrade
E56: Norm-Außentemp | F56: =VLOOKUP(E7,Klimadaten!B:D,2,FALSE) -> -12 | H56: =F10 -> From 2009 | I56: =VLOOKUP($E$7,Klimadaten!$B:$H,4,FALSE)*24 -> 4392 | M56: =M12 -> Before 1980 | N56: =M11 -> 1980 - 1994 | O56: =M10 -> From 1995 | P56: Gewählt | Q56: Gewählt
E57: Jahresmittel-Temp | F57: =VLOOKUP(E7,Klimadaten!B:D,3,FALSE) -> 9.73 | H57: =F11 -> 1995 - 2008 | I57: =VLOOKUP($E$7,Klimadaten!$B:$H,5,FALSE)*24 -> 5184 | K57: Heizung | L57: =H10 -> Gas boiler | M57: 0.78 | N57: 0.83 | O57: 0.88 | P57: =HLOOKUP($M$7,$M$56:$O$69,2,FALSE) -> 0.88 | Q57: =VLOOKUP(H7,L57:Q65,5,FALSE) -> 0.88
E58: Norm-Innentemp. | F58: =LEFT(G7,FIND(" ",G7)-1) -> 20 | H58: 1980 - 1994 | I58: =VLOOKUP($E$7,Klimadaten!$B:$H,6,FALSE)*24 -> 5772 | L58: =H11 -> Oil boiler | M58: 0.78 | N58: 0.83 | O58: 0.88 | P58: =HLOOKUP($M$7,$M$56:$O$69,3,FALSE) -> 0.88
E59: Belastungsgrad WE | F59: =(F58-F57)/(F58-F56) -> 0.3209375 | H59: Before 1980 | I59: =VLOOKUP($E$7,Klimadaten!$B:$H,7,FALSE)*24 -> 6360 | L59: Condensing gas boiler | M59: --- | N59: 0.87 | O59: 0.92 | P59: =HLOOKUP($M$7,$M$56:$O$69,4,FALSE) -> 0.92
L60: Condensing oil boiler | M60: --- | N60: 0.87 | O60: 0.92 | P60: =HLOOKUP($M$7,$M$56:$O$69,5,FALSE) -> 0.92
L61: Storage heater | M61: 1 | N61: 1 | O61: 1 | P61: =HLOOKUP($M$7,$M$56:$O$69,6,FALSE) -> 1
H62: th h/a | I62: =VLOOKUP(F7,H56:I59,2,FALSE) -> 5772 | L62: Electric heating | M62: 1 | N62: 1 | O62: 1 | P62: =HLOOKUP($M$7,$M$56:$O$69,7,FALSE) -> 1
L63: District heating | M63: --- | N63: 0.87 | O63: 0.92 | P63: =HLOOKUP($M$7,$M$56:$O$69,8,FALSE) -> 0.92
H64: Vollbenutzungsstunden | I64: =I62*F59 -> 1852.45125 | L64: Pellet | M64: --- | N64: --- | O64: 0.85 | P64: =HLOOKUP($M$7,$M$56:$O$69,9,FALSE) -> 0.85
L65: Other | M65: 0.78 | N65: 0.83 | O65: 0.88 | P65: =HLOOKUP($M$7,$M$56:$O$69,10,FALSE) -> 0.88
E66: Energie | K66: WWB | L66: =R10 -> Building-central without circulation | M66: 0.5 | N66: 0.6 | O66: 0.7 | P66: =HLOOKUP($M$7,$M$56:$O$69,11,FALSE) -> 0.7 | Q66: =VLOOKUP(R7,L66:Q69,5,FALSE) -> 0.7
E67: Gesamt-Verbrauch [kWh/a] | F67: E-G,in | G67: =J7*K7 -> 20800 | L67: =R11 -> Building-central with circulation | M67: =IF(N7=N10,0.2,0.3) -> 0.2 | N67: =IF(N7=N10,0.3,0.45) -> 0.3 | O67: =IF(N7=N10,0.4,0.6) -> 0.4 | P67: =HLOOKUP($M$7,$M$56:$O$69,12,FALSE) -> 0.4
E68: Bedarf WWB [kWh/a] | F68: QW,b | G68: =IF(L7=L10,0,P7*Q7*U7) -> 0 | L68: =R12 -> Apartment-central | M68: 0.7 | N68: 0.775 | O68: 0.85 | P68: =HLOOKUP($M$7,$M$56:$O$69,13,FALSE) -> 0.85
E69: Verbrauch WWB [kWh/a] | F69: E-W,g,In | G69: =G68/Q66 -> 0 | L69: =R13 -> Apartment-decentral | M69: 0.8 | N69: 0.875 | O69: 0.95 | P69: =HLOOKUP($M$7,$M$56:$O$69,14,FALSE) -> 0.95
E70: Verbrauch heizung [kWh/a] | F70: E-H,G,In | G70: =G67-G69 -> 20800
E71: Feuerungsleitung | F71: Phi-H,G,In | G71: =G70/(I62*F59) -> 11.22836566
E72: Heizlast | F72: Phi,H,G,Out | G72: =G71*Q57 -> 9.88096178

Sheet Klimadaten (hidden)
A1: Deutschland
A2: PLZ | B2: Stadt | C2: Norm-Außentemp. | D2: Jahres-Mitteltemp. | E2: Heiztage Neubau Heizgrenze 10°C | F2: Heiztage ab 1995 Heizgrenze 12°C | G2: Heiztage 1980-1995 Heizgrenze 13,5°C | H2: Heiztage vor 1980 Heizgrenze 15°C
A3: 1.... | B3: Berlin | C3: -14 | D3: 9.83 | E3: 182 | F3: 211 | G3: 234 | H3: 257
A4: 22... | B4: Hamburg | C4: -12 | D4: 9.22 | E4: 192 | F4: 225 | G4: 253.5 | H4: 282
A5: 8.... | B5: München | C5: -16 | D5: 9.07 | E5: 190 | F5: 218 | G5: 241.5 | H5: 265
A6: 5.... | B6: Köln | C6: -10 | D6: 10.66 | E6: 170 | F6: 202 | G6: 230 | H6: 258
A7: 60... | B7: Frankfurt / Main | C7: -12 | D7: 10.37 | E7: 176 | F7: 205 | G7: 228.5 | H7: 252
A8: 7.... | B8: Stuttgart | C8: -12 | D8: 9.26 | E8: 190 | F8: 221 | G8: 245 | H8: 269
A9: 44... | B9: Dortmund | C9: -12 | D9: 10.7 | E9: 170 | F9: 202 | G9: 230 | H9: 258
A10: 40... | B10: Düsseldorf | C10: -10 | D10: 10.66 | E10: 170 | F10: 202 | G10: 230 | H10: 258
A11: 45... | B11: Essen | C11: -10 | D11: 10.7 | E11: 170 | F11: 202 | G11: 230 | H11: 258
A12: 28... | B12: Bremen | C12: -12 | D12: 9.4 | E12: 190 | F12: 223 | G12: 252 | H12: 281
A13: 30... | B13: Hannover | C13: -14 | D13: 9.44 | E13: 187 | F13: 220 | G13: 247.5 | H13: 275
A14: 04... | B14: Leipzig | C14: -14 | D14: 9.37 | E14: 188 | F14: 218 | G14: 242.5 | H14: 267
A15: 010.. | B15: Dresden | C15: -14 | D15: 9.29 | E15: 189 | F15: 219 | G15: 242.5 | H15: 266
A16: 904.. | B16: Nürnberg | C16: -16 | D16: 9.22 | E16: 192 | F16: 220 | G16: 243.5 | H16: 267
A17: 1805. | B17: Rostock | C17: -10 | D17: 9.04 | E17: 196 | F17: 226 | G17: 253.5 | H17: 281
A18: 72280 | B18: Aach | C18: -16 | D18: 9.26 | E18: 190 | F18: 221 | G18: 245 | H18: 269
A19: 78267 | B19: Aach/Hegau | C19: -14 | D19: 9.71 | E19: 186 | F19: 214 | G19: 237.5 | H19: 261
A20: 520.. | B20: Aachen | C20: -12 | D20: 10.24 | E20: 176 | F20: 211 | G20: 239.5 | H20: 268
A21: 7343. | B21: Aalen / Württ. | C21: -16 | D21: 9.26 | E21: 190 | F21: 221 | G21: 245 | H21: 269
A22: 65326 | B22: Aarbergen | C22: -14 | D22: 8.47 | E22: 205 | F22: 240 | G22: 267.5 | H22: 295
A23: 19322 | B23: Abbendorf | C23: -14 | D23: 8.89 | E23: 197 | F23: 227 | G23: 255 | H23: 283
A24: 30900 | B24: Abbensen | C24: -14 | D24: 9.44 | E24: 187 | F24: 220 | G24: 247.5 | H24: 275
A25: 31234 | B25: Abbensen | C25: -14 | D25: 9.44 | E25: 187 | F25: 220 | G25: 247.5 | H25: 275
A26: 93326 | B26: Abensberg | C26: -18 | D26: 8.76 | E26: 194 | F26: 222 | G26: 244.5 | H26: 267
A27: 08485 | B27: Abhorn | C27: -16 | D27: 8.43 | E27: 202 | F27: 233 | G27: 258.5 | H27: 284
A28: 37290 | B28: Abterode | C28: -16 | D28: 9.73 | E28: 183 | F28: 216 | G28: 240.5 | H28: 265
A29: 04347 | B29: Abtnaundorf | C29: -14 | D29: 9.37 | E29: 188 | F29: 218 | G29: 242.5 | H29: 267
A30: 94261 | B30: Abtschlag | C30: -18 | D30: 8.76 | E30: 194 | F30: 222 | G30: 244.5 | H30: 267
A31: 73453 | B31: Abtsgmünd | C31: -16 | D31: 9.26 | E31: 190 | F31: 221 | G31: 245 | H31: 269
A32: 69518 | B32: Abtsteinach | C32: -12 | D32: 9.55 | E32: 186 | F32: 216 | G32: 240.5 | H32: 265
A33: 83101 | B33: Achenmühle | C33: -18 | D33: 7.01 | E33: 227 | F33: 260 | G33: 283 | H33: 306
A34: 77855 | B34: Achern | C34: -12 | D34: 10.86 | E34: 169 | F34: 197 | G34: 221 | H34: 245
A35: 28832 | B35: Achim | C35: -12 | D35: 9.4 | E35: 190 | F35: 223 | G35: 252 | H35: 281
A36: 82547 | B36: Achmühle | C36: -16 | D36: 7.42 | E36: 217 | F36: 249 | G36: 272.5 | H36: 296
A37: 88480 | B37: Achstetten | C37: -16 | D37: 9.26 | E37: 190 | F37: 221 | G37: 245 | H37: 269
A38: 47626 | B38: Achterhoek | C38: -10 | D38: 10.66 | E38: 170 | F38: 202 | G38: 230 | H38: 258
A39: 25917 | B39: Achtrup | C39: -10 | D39: 8.51 | E39: 204 | F39: 239 | G39: 269.5 | H39: 300
A40: 37581 | B40: Ackenhausen | C40: -16 | D40: 9.73 | E40: 183 | F40: 216 | G40: 240.5 | H40: 265
A41: 73099 | B41: Adelberg | C41: -16 | D41: 9.26 | E41: 190 | F41: 221 | G41: 245 | H41: 269
A42: 37139 | B42: Adelebsen | C42: -14 | D42: 9.73 | E42: 183 | F42: 216 | G42: 240.5 | H42: 265
A43: 79618 | B43: Adelhausen | C43: -12 | D43: 9.26 | E43: 190 | F43: 221 | G43: 245 | H43: 269
A44: 73486 | B44: Adelmannsfelden | C44: -16 | D44: 9.26 | E44: 190 | F44: 221 | G44: 245 | H44: 269
A45: 79669 | B45: Adelsberg | C45: -16 | D45: 9.26 | E45: 190 | F45: 221 | G45: 245 | H45: 269
A46: 97737 | B46: Adelsberg | C46: -14 | D46: 9.55 | E46: 186 | F46: 216 | G46: 240.5 | H46: 265
A47: 85111 | B47: Adelschlag | C47: -16 | D47: 9.07 | E47: 190 | F47: 218 | G47: 241.5 | H47: 265
A48: 74740 | B48: Adelsheim | C48: -14 | D48: 9.26 | E48: 190 | F48: 221 | G48: 245 | H48: 269
A49: 86477 | B49: Adelsried | C49: -16 | D49: 10.24 | E49: 200 | F49: 230 | G49: 254 | H49: 278
A50: 04886 | B50: Adelwitz | C50: -16 | D50: 9.37 | E50: 188 | F50: 218 | G50: 242.5 | H50: 267
A51: 21365 | B51: Adendorf | C51: -12 | D51: 9.22 | E51: 192 | F51: 225 | G51: 253.5 | H51: 282
A52: 31171 | B52: Adensen | C52: -14 | D52: 9.44 | E52: 187 | F52: 220 | G52: 247.5 | H52: 275
A53: 31079 | B53: Adenstedt | C53: -16 | D53: 9.44 | E53: 187 | F53: 220 | G53: 247.5 | H53: 275
A54: 84166 | B54: Adlkofen | C54: -16 | D54: 8.76 | E54: 194 | F54: 222 | G54: 244.5 | H54: 267
A55: 08626 | B55: Adorf/Vogtland | C55: -18 | D55: 7.71 | E55: 213 | F55: 246 | G55: 270 | H55: 294
A56: 31855 | B56: Aerzen | C56: -14 | D56: 9.44 | E56: 187 | F56: 220 | G56: 247.5 | H56: 275
A57: 71563 | B57: Affalterbach | C57: -14 | D57: 9.26 | E57: 190 | F57: 221 | G57: 245 | H57: 269
A58: 74182 | B58: Affaltrach | C58: -14 | D58: 9.26 | E58: 190 | F58: 221 | G58: 245 | H58: 269
A59: 86444 | B59: Affing | C59: -16 | D59: 10.24 | E59: 200 | F59: 230 | G59: 254 | H59: 278
A60: 71083 | B60: Affstätt | C60: -16 | D60: 9.26 | E60: 190 | F60: 221 | G60: 245 | H60: 269
A61: 74858 | B61: Aglasterhausen | C61: -12 | D61: 9.26 | E61: 190 | F61: 221 | G61: 245 | H61: 269
A62: 48683 | B62: Ahaus | C62: -10 | D62: 9.44 | E62: 187 | F62: 220 | G62: 247.5 | H62: 275
A63: 88697 | B63: Ahausen | C63: -12 | D63: 9.26 | E63: 190 | F63: 221 | G63: 245 | H63: 269
A64: 72160 | B64: Ahldorf | C64: -16 | D64: 9.26 | E64: 190 | F64: 221 | G64: 245 | H64: 269
A65: 5922. | B65: Ahlen/Westf. | C65: -12 | D65: 8.47 | E65: 205 | F65: 240 | G65: 267.5 | H65: 295
A66: 06313 | B66: Ahlsdorf | C66: -14 | D66: 9.37 | E66: 188 | F66: 218 | G66: 242.5 | H66: 267
A67: 32609 | B67: Ahlsen | C67: -12 | D67: 9.73 | E67: 183 | F67: 216 | G67: 240.5 | H67: 265
A68: 34292 | B68: Ahnatal | C68: -14 | D68: 9.73 | E68: 183 | F68: 216 | G68: 240.5 | H68: 265
A69: 29353 | B69: Ahnsbeck | C69: -14 | D69: 9.44 | E69: 187 | F69: 220 | G69: 247.5 | H69: 275
A70: 94527 | B70: Aholming | C70: -18 | D70: 8.76 | E70: 194 | F70: 222 | G70: 244.5 | H70: 267
A71: 96482 | B71: Ahorn | C71: -16 | D71: 9.03 | E71: 194 | F71: 223 | G71: 247 | H71: 271
A72: 74744 | B72: Ahorn | C72: -16 | D72: 9.26 | E72: 190 | F72: 221 | G72: 245 | H72: 269
A73: 95491 | B73: Ahorntal | C73: -16 | D73: 6.95 | E73: 226 | F73: 258 | G73: 280.5 | H73: 303
A74: 38707 | B74: Ahrensberg | C74: -12 | D74: 9.3 | E74: 189 | F74: 219 | G74: 245 | H74: 271
A75: 22926 | B75: Ahrensburg | C75: -12 | D75: 9.22 | E75: 192 | F75: 225 | G75: 253.5 | H75: 282
A76: 16356 | B76: Ahrensfelde | C76: -14 | D76: 9.14 | E76: 194 | F76: 221 | G76: 246.5 | H76: 272
A77: 18320 | B77: Ahrenshagen | C77: -10 | D77: 9.04 | E77: 196 | F77: 226 | G77: 253.5 | H77: 281
A78: 53945 | B78: Ahrhütte | C78: -14 | D78: 8.47 | E78: 205 | F78: 240 | G78: 267.5 | H78: 295
A79: 86551 | B79: Aichach | C79: -16 | D79: 10.24 | E79: 200 | F79: 230 | G79: 254 | H79: 278
A80: 92262 | B80: Aichach | C80: -16 | D80: 9.22 | E80: 192 | F80: 220 | G80: 243.5 | H80: 267
A81: 72539 | B81: Aichelau | C81: -16 | D81: 9.26 | E81: 190 | F81: 221 | G81: 245 | H81: 269
A82: 73101 | B82: Aichelberg | C82: -16 | D82: 9.26 | E82: 190 | F82: 221 | G82: 245 | H82: 269
A83: 75323 | B83: Aichelberg | C83: -16 | D83: 9.26 | E83: 190 | F83: 221 | G83: 245 | H83: 269
A84: 78733 | B84: Aichhalden | C84: -16 | D84: 9.26 | E84: 190 | F84: 221 | G84: 245 | H84: 269
A85: 88317 | B85: Aichstetten | C85: -16 | D85: 9.26 | E85: 190 | F85: 221 | G85: 245 | H85: 269
A86: 72631 | B86: Aichtal | C86: -14 | D86: 9.26 | E86: 190 | F86: 221 | G86: 245 | H86: 269
A87: 73773 | B87: Aichwald | C87: -14 | D87: 9.26 | E87: 190 | F87: 221 | G87: 245 | H87: 269
A88: 84539 | B88: Aidenbach | C88: -16 | D88: 8.76 | E88: 194 | F88: 222 | G88: 244.5 | H88: 267
A89: 94501 | B89: Aidenbach | C89: -16 | D89: 8.76 | E89: 194 | F89: 222 | G89: 244.5 | H89: 267
A90: 97491 | B90: Aidhausen | C90: -16 | D90: 9.55 | E90: 186 | F90: 216 | G90: 240.5 | H90: 265
A91: 71134 | B91: Aidlingen | C91: -16 | D91: 9.26 | E91: 190 | F91: 221 | G91: 245 | H91: 269
A92: 88448 | B92: Aigendorf | C92: -16 | D92: 9.26 | E92: 190 | F92: 221 | G92: 245 | H92: 269
A93: 88048 | B93: Ailingen | C93: -12 | D93: 9.71 | E93: 186 | F93: 214 | G93: 237.5 | H93: 261
A94: 86447 | B94: Aindling | C94: -16 | D94: 10.24 | E94: 200 | F94: 230 | G94: 254 | H94: 278
A95: 83404 | B95: Ainring | C95: -16 | D95: 7.01 | E95: 227 | F95: 260 | G95: 283 | H95: 306
A96: 83026 | B96: Aising | C96: -18 | D96: 7.01 | E96: 227 | F96: 260 | G96: 283 | H96: 306
A97: 89344 | B97: Aislingen | C97: -16 | D97: 10.24 | E97: 200 | F97: 230 | G97: 254 | H97: 278
A98: 94330 | B98: Aiterhofen | C98: -18 | D98: 8.76 | E98: 194 | F98: 222 | G98: 244.5 | H98: 267
A99: 88319 | B99: Aitrach | C99: -16 | D99: 9.26 | E99: 190 | F99: 221 | G99: 245 | H99: 269
A100: 78554 | B100: Aixheim | C100: -18 | D100: 9.26 | E100: 190 | F100: 221 | G100: 245 | H100: 269
A101: 37671 | B101: Albaxen | C101: -12 | D101: 9.73 | E101: 183 | F101: 216 | G101: 240.5 | H101: 265
A102: 79774 | B102: Albbruck | C102: -12 | D102: 9.26 | E102: 190 | F102: 221 | G102: 245 | H102: 269
A103: 08280 | B103: Albernau | C103: -16 | D103: 7.71 | E103: 213 | F103: 246 | G103: 270 | H103: 294
A104: 08280 | B104: Alberoda | C104: -16 | D104: 7.71 | E104: 213 | F104: 246 | G104: 270 | H104: 294
A105: 04420 | B105: Albersdorf | C105: -14 | D105: 9.37 | E105: 188 | F105: 218 | G105: 242.5 | H105: 267
A106: 25767 | B106: Albersdorf, Holst | C106: -12 | D106: 8.51 | E106: 204 | F106: 239 | G106: 269.5 | H106: 300
A107: 73095 | B107: Albershausen | C107: -16 | D107: 9.26 | E107: 190 | F107: 221 | G107: 245 | H107: 269
A108: 76857 | B108: Albersweiler | C108: -12 | D108: 9.36 | E108: 191 | F108: 223 | G108: 248.5 | H108: 274
A109: 88433 | B109: Alberweiler | C109: -16 | D109: 9.26 | E109: 190 | F109: 221 | G109: 245 | H109: 269
A110: 72458 | B110: Albstadt | C110: -18 | D110: 9.26 | E110: 190 | F110: 221 | G110: 245 | H110: 269
A111: 72461 | B111: Albstadt | C111: -18 | D111: 9.26 | E111: 190 | F111: 221 | G111: 245 | H111: 269
A112: 57258 | B112: Alchen | C112: -12 | D112: 8.47 | E112: 205 | F112: 240 | G112: 267.5 | H112: 295
A113: 52457 | B113: Aldenhoven | C113: -12 | D113: 10.24 | E113: 176 | F113: 211 | G113: 239.5 | H113: 268
A114: 94501 | B114: Aldersbach | C114: -16 | D114: 8.76 | E114: 194 | F114: 222 | G114: 244.5 | H114: 267
A115: 78554 | B115: Aldingen | C115: -18 | D115: 9.26 | E115: 190 | F115: 221 | G115: 245 | H115: 269
A116: 86733 | B116: Alerheim | C116: -16 | D116: 10.24 | E116: 200 | F116: 230 | G116: 254 | H116: 278
A117: 91793 | B117: Alesheim | C117: -16 | D117: 9.22 | E117: 192 | F117: 220 | G117: 243.5 | H117: 267
A118: 73553 | B118: Alfdorf | C118: -16 | D118: 9.26 | E118: 190 | F118: 221 | G118: 245 | H118: 269
A119: 31061 | B119: Alfeld | C119: -16 | D119: 9.44 | E119: 187 | F119: 220 | G119: 247.5 | H119: 275
A120: 91236 | B120: Alfeld | C120: -16 | D120: 9.22 | E120: 192 | F120: 220 | G120: 243.5 | H120: 267
A121: 91177 | B121: Alfershausen | C121: -16 | D121: 9.22 | E121: 192 | F121: 220 | G121: 243.5 | H121: 267
A122: 49594 | B122: Alfhausen | C122: -12 | D122: 9.44 | E122: 187 | F122: 220 | G122: 247.5 | H122: 275
A123: 53347 | B123: Alfter | C123: -12 | D123: 8.47 | E123: 205 | F123: 240 | G123: 267.5 | H123: 295
A124: 99310 | B124: Alkersleben | C124: -14 | D124: 8.43 | E124: 202 | F124: 233 | G124: 258.5 | H124: 284
A125: 59846 | B125: Allendorf | C125: -14 | D125: 8.47 | E125: 205 | F125: 240 | G125: 267.5 | H125: 295
A126: 35108 | B126: Allendorf/Eder | C126: -14 | D126: 9.73 | E126: 183 | F126: 216 | G126: 240.5 | H126: 265
A127: 90584 | B127: Allersberg | C127: -16 | D127: 9.22 | E127: 192 | F127: 220 | G127: 243.5 | H127: 267
A128: 88422 | B128: Alleshausen | C128: -16 | D128: 9.26 | E128: 190 | F128: 221 | G128: 245 | H128: 269
A129: 82239 | B129: Alling | C129: -16 | D129: 7.42 | E129: 217 | F129: 249 | G129: 272.5 | H129: 296
A130: 78464 | B130: Allmannsdorf | C130: -12 | D130: 9.71 | E130: 186 | F130: 214 | G130: 237.5 | H130: 261
A131: 77963 | B131: Allmannsweier | C131: -12 | D131: 10.86 | E131: 169 | F131: 197 | G131: 221 | H131: 245
A132: 89604 | B132: Allmendingen | C132: -14 | D132: 10.24 | E132: 200 | F132: 230 | G132: 254 | H132: 278
A133: 71573 | B133: Allmersbach im Tal | C133: -14 | D133: 9.26 | E133: 190 | F133: 221 | G133: 245 | H133: 269
A134: 06507 | B134: Allrode / Harz | C134: -16 | D134: 9.37 | E134: 188 | F134: 218 | G134: 242.5 | H134: 267
A135: 06542 | B135: Allstedt | C135: -14 | D135: 9.37 | E135: 188 | F135: 218 | G135: 242.5 | H135: 267
A136: 31079 | B136: Almstedt | C136: -16 | D136: 9.44 | E136: 187 | F136: 220 | G136: 247.5 | H136: 275
A137: 46519 | B137: Alpen | C137: -10 | D137: 10.66 | E137: 170 | F137: 202 | G137: 230 | H137: 258
A138: 46519 | B138: Alpen-Bönninghardt | C138: -10 | D138: 10.66 | E138: 170 | F138: 202 | G138: 230 | H138: 258
A139: 99195 | B139: Alperstedt | C139: -14 | D139: 8.43 | E139: 202 | F139: 233 | G139: 258.5 | H139: 284
A140: 72275 | B140: Alpirsbach | C140: -16 | D140: 9.26 | E140: 190 | F140: 221 | G140: 245 | H140: 269
A141: 52477 | B141: Alsdorf/Rheinl. | C141: -12 | D141: 10.24 | E141: 176 | F141: 211 | G141: 239.5 | H141: 268
A142: 67722 | B142: Alsenbrück | C142: -12 | D142: 9.36 | E142: 191 | F142: 223 | G142: 248.5 | H142: 274
A143: 36304 | B143: Alsfeld | C143: -14 | D143: 9.73 | E143: 183 | F143: 216 | G143: 240.5 | H143: 265
A144: 67577 | B144: Alsheim | C144: -12 | D144: 9.36 | E144: 191 | F144: 223 | G144: 248.5 | H144: 274
A145: 57515 | B145: Alsting (Frankreich) | C145: -12 | D145: 8.47 | E145: 205 | F145: 240 | G145: 267.5 | H145: 295
A146: 19303 | B146: Alt Jabel | C146: -12 | D146: 8.89 | E146: 197 | F146: 227 | G146: 255 | H146: 283
A147: 18236 | B147: Alt Karin | C147: -10 | D147: 9.04 | E147: 196 | F147: 226 | G147: 253.5 | H147: 281
A148: 75365 | B148: Altburg | C148: -16 | D148: 9.26 | E148: 190 | F148: 221 | G148: 245 | H148: 269
A149: 75365 | B149: Altburg | C149: -16 | D149: 9.26 | E149: 190 | F149: 221 | G149: 245 | H149: 269
A150: 03229 | B150: Altdöbern | C150: -16 | D150: 9.1 | E150: 192 | F150: 221 | G150: 244.5 | H150: 268
A151: 77955 | B151: Altdorf | C151: -12 | D151: 10.86 | E151: 169 | F151: 197 | G151: 221 | H151: 245
A152: 90518 | B152: Altdorf | C152: -16 | D152: 9.22 | E152: 192 | F152: 220 | G152: 243.5 | H152: 267
A153: 84032 | B153: Altdorf | C153: -16 | D153: 8.76 | E153: 194 | F153: 222 | G153: 244.5 | H153: 267
A154: 71155 | B154: Altdorf | C154: -16 | D154: 9.26 | E154: 190 | F154: 221 | G154: 245 | H154: 269
A155: 72655 | B155: Altdorf | C155: -16 | D155: 9.26 | E155: 190 | F155: 221 | G155: 245 | H155: 269
A156: 83549 | B156: Alteiselfing | C156: -16 | D156: 7.01 | E156: 227 | F156: 260 | G156: 283 | H156: 306
A157: 58762 | B157: Altena / Westf. | C157: -12 | D157: 8.47 | E157: 205 | F157: 240 | G157: 267.5 | H157: 295
A158: 53505 | B158: Altenahr | C158: -14 | D158: 8.47 | E158: 205 | F158: 240 | G158: 267.5 | H158: 295
A159: 38707 | B159: Altenau | C159: -16 | D159: 9.3 | E159: 189 | F159: 219 | G159: 245 | H159: 271
A160: 04828 | B160: Altenbach | C160: -14 | D160: 9.37 | E160: 188 | F160: 218 | G160: 242.5 | H160: 267
A161: 33184 | B161: Altenbeken | C161: -14 | D161: 9.73 | E161: 183 | F161: 216 | G161: 240.5 | H161: 265
A162: 01773 | B162: Altenberg | C162: -16 | D162: 9.29 | E162: 189 | F162: 219 | G162: 242.5 | H162: 266
A163: 49733 | B163: Altenberge | C163: -10 | D163: 9.44 | E163: 187 | F163: 220 | G163: 247.5 | H163: 275
A164: 48341 | B164: Altenbergen | C164: -12 | D164: 9.44 | E164: 187 | F164: 220 | G164: 247.5 | H164: 275
A165: 34587 | B165: Altenbrunslar | C165: -14 | D165: 9.73 | E165: 183 | F165: 216 | G165: 240.5 | H165: 265
A166: 34587 | B166: Altenburg | C166: -14 | D166: 9.73 | E166: 183 | F166: 216 | G166: 240.5 | H166: 265
A167: 04600 | B167: Altenburg | C167: -14 | D167: 9.37 | E167: 188 | F167: 218 | G167: 242.5 | H167: 267
A168: 29574 | B168: Altenebstorf | C168: -14 | D168: 9.44 | E168: 187 | F168: 220 | G168: 247.5 | H168: 275
A169: 45329 | B169: Altenessen | C169: -10 | D169: 10.66 | E169: 170 | F169: 202 | G169: 230 | H169: 258
A170: 98701 | B170: Altenfeld | C170: -16 | D170: 7.71 | E170: 213 | F170: 246 | G170: 270 | H170: 294
A171: 66885 | B171: Altenglau | C171: -14 | D171: 9.36 | E171: 191 | F171: 223 | G171: 248.5 | H171: 274
A172: 36391 | B172: Altengronau | C172: -14 | D172: 9.73 | E172: 183 | F172: 216 | G172: 240.5 | H172: 265
A173: 33729 | B173: Altenhagen | C173: -12 | D173: 9.73 | E173: 183 | F173: 216 | G173: 240.5 | H173: 265
A174: 31558 | B174: Altenhagen | C174: -14 | D174: 9.44 | E174: 187 | F174: 220 | G174: 247.5 | H174: 275
A175: 85356 | B175: Altenhausen | C175: -16 | D175: 9.07 | E175: 190 | F175: 218 | G175: 241.5 | H175: 265
A176: 77743 | B176: Altenheim | C176: -12 | D176: 10.86 | E176: 169 | F176: 197 | G176: 221 | H176: 245
A177: 96479 | B177: Altenhof | C177: -16 | D177: 9.03 | E177: 194 | F177: 223 | G177: 247 | H177: 271
A178: 16244 | B178: Altenhof | C178: -14 | D178: 9.14 | E178: 194 | F178: 221 | G178: 246.5 | H178: 272
A179: 57368 | B179: Altenhundem | C179: -14 | D179: 8.47 | E179: 205 | F179: 240 | G179: 267.5 | H179: 295
A180: 57610 | B180: Altenkirchen | C180: -14 | D180: 8.47 | E180: 205 | F180: 240 | G180: 267.5 | H180: 295
A181: 66903 | B181: Altenkirchen | C181: -12 | D181: 9.36 | E181: 191 | F181: 223 | G181: 248.5 | H181: 274
A182: 23730 | B182: Altenkrempe | C182: -10 | D182: 8.89 | E182: 197 | F182: 227 | G182: 255 | H182: 283
A183: 83352 | B183: Altenmarkt | C183: -16 | D183: 7.01 | E183: 227 | F183: 260 | G183: 283 | H183: 306
A184: 29575 | B184: Altenmedingen | C184: -12 | D184: 9.44 | E184: 187 | F184: 220 | G184: 247.5 | H184: 275
A185: 26169 | B185: Altenoythe | C185: -12 | D185: 9.93 | E185: 181 | F185: 215 | G185: 245.5 | H185: 276
A186: 95500 | B186: Altenplos | C186: -16 | D186: 6.95 | E186: 226 | F186: 258 | G186: 280.5 | H186: 303
A187: 72657 | B187: Altenriet | C187: -16 | D187: 9.26 | E187: 190 | F187: 221 | G187: 245 | H187: 269
A188: 06642 | B188: Altenrode | C188: -14 | D188: 9.37 | E188: 188 | F188: 218 | G188: 242.5 | H188: 267
A189: 89281 | B189: Altenstadt | C189: -16 | D189: 10.24 | E189: 200 | F189: 230 | G189: 254 | H189: 278
A190: 92665 | B190: Altenstadt | C190: -16 | D190: 9.22 | E190: 192 | F190: 220 | G190: 243.5 | H190: 267
A191: 72213 | B191: Altensteig | C191: -16 | D191: 9.26 | E191: 190 | F191: 221 | G191: 245 | H191: 269
A192: 17087 | B192: Altentreptow | C192: -14 | D192: 8.72 | E192: 197 | F192: 227 | G192: 255 | H192: 283
A193: 97327 | B193: Altertheim | C193: -14 | D193: 9.55 | E193: 186 | F193: 216 | G193: 240.5 | H193: 265
A194: 66802 | B194: Altforweiler | C194: -12 | D194: 9.36 | E194: 191 | F194: 223 | G194: 248.5 | H194: 274
A195: 01462 | B195: Altfranken | C195: -14 | D195: 9.29 | E195: 189 | F195: 219 | G195: 242.5 | H195: 266
A196: 84169 | B196: Altfraunhofen | C196: -16 | D196: 8.76 | E196: 194 | F196: 222 | G196: 244.5 | H196: 267
A197: 09326 | B197: Altgeringswalde | C197: -14 | D197: 8.43 | E197: 202 | F197: 233 | G197: 258.5 | H197: 284
A198: 89174 | B198: Altheim | C198: -16 | D198: 10.24 | E198: 200 | F198: 230 | G198: 254 | H198: 278
A199: 89195 | B199: Altheim | C199: -16 | D199: 10.24 | E199: 200 | F199: 230 | G199: 254 | H199: 278
A200: 89605 | B200: Altheim | C200: -14 | D200: 10.24 | E200: 200 | F200: 230 | G200: 254 | H200: 278
... 8110 more rows

Sheet Translation (hidden)
A2: English/Englisch | B2: Deutsch | C2: English/Englisch | D2: Holländisch | G2: Norskt/Norwegisch | H2: Suomi/Finnisch | I2: Spanisch | J2: Estonian
A3: Heat demand by consumption | B3: Heizlast nach Verbrauchsdaten | C3: Heat demand by consumption | D3: Verwarmingsvermogen
A4: Building | B4: Gebäude | C4: Building | D4: Object
A5: Location (enter city) | B5: Standort (Eingabe Stadt) | C5: Location (enter city) | D5: Plaats object
A6: Year of build | B6: Baujahr | C6: Year of build | D6: Bouwjaar
A7: From 2009 | B7: Ab 2009 | C7: From 2009 | D7: Vanaf 2009
A8: 1995 - 2008 | B8: 1995 - 2008 | C8: 1995 - 2008 | D8: 1995-2008
A9: 1980 - 1994 | B9: 1980 - 1994 | C9: 1980 - 1994 | D9: 1980-1994
A10: Before 1980 | B10: Vor 1980 | C10: Before 1980 | D10: Voor 1980
A11: Type of building | B11: Gebäudetyp | C11: Type of building | D11: Type Gebouw
A12: Residential building | B12: Wohngebäude | C12: Residential building | D12: Woningbouw
A13: Office building | B13: Bürogebäude | C13: Office building | D13: Utiliteit
A14: Hospital | B14: Krankenhaus | C14: Hospital | D14: Ziekenhuis
A15: School (without showers) | B15: Schule (ohne Duschen) | C15: School (without showers) | D15: School
A16: School (with showers) | B16: Schule (mit Duschen) | C16: School (with showers) | D16: School met douchefaciliteit
A17: Retailer / Store | B17: Einzelhandel/Kaufhaus | C17: Retailer / Store | D17: Handelsbedrijf
A18: Garage (with showers) | B18: Werkstatt (mit Duschen) | C18: Garage (with showers) | D18: Werkplaats met douchefaciliteit
A19: Hotel (Standard) | B19: Hotel (Standard) | C19: Hotel (Standard) | D19: Hotel (standaard)
A20: Hotel (High standard) | B20: Hotel (Gehobener Standard) | C20: Hotel (High standard) | D20: Hotel (bovengemiddeld Luxe)
A21: Hotel (Luxury) | B21: Hotel (Luxus) | C21: Hotel (Luxury) | D21: Hotel (luxe)
A22: Restaurant | B22: Gaststätte | C22: Restaurant | D22: Gastenverblijf
A23: Nursing home | B23: Heim | C23: Nursing home | D23: Bejaardenhuis
A24: Barracks | B24: Kaserne | C24: Barracks | D24: Kazerne
A25: Sports facility (with showers) | B25: Sportanlage (Mit Dusche) | C25: Sports facility (with showers) | D25: Sporthal (Met douchefaciliteit)
A26: Bakery | B26: Bäckerei | C26: Bakery | D26: Bakkerij
A27: Hairdresser | B27: Friseur | C27: Hairdresser | D27: Kapper
A28: Butcher (with production) | B28: Fleischerei mit Produktion | C28: Butcher (with production) | D28: Slager met slachterij
A29: Average room temperature | B29: Mittlere Innentemperatur | C29: Average room temperature | D29: Gemmidelde Ruimtemperatuur
A30: Heating system | B30: Heizungsanlage | C30: Heating system | D30: Verwarmingsinstallatie
A31: Heat generator | B31: Wärmeerzeuger | C31: Heat generator | D31: Verwarmingsbron
A32: Gas boiler | B32: NT-Kessel Gas | C32: Gas boiler | D32: VR Gasketel
A33: Oil boiler | B33: NT-Kessel Öl | C33: Oil boiler | D33: VR Olieketel
A34: Condensing gas boiler | B34: Brennwertkessel Gas | C34: Condensing gas boiler | D34: HR gasketel
A35: Condensing oil boiler | B35: Brennwertkessel Öl | C35: Condensing oil boiler | D35: HR Olieketel
A36: Storage heater | B36: Wärmespeicher | C36: Storage heater | D36: Buffervat
A37: Electric heating | B37: Elektro-Direktheizung | C37: Electric heating | D37: Directe Electrische verwarming
A38: District heating | B38: Fernwärme | C38: District heating | D38: Stadsverwarming
A39: Pellet | B39: Pelletkessel | C39: Pellet | D39: Palletketel
A40: Other | B40: Sonstige | C40: Other | D40: Overige soorten
A41: Usage | B41: Nutzungsart | C41: Usage | D41: Bedrijfswijze
A42: Heating only | B42: Nur Heizung | C42: Heating only | D42: Alleen verwarming
A43: Heating | DHW | B43: Heizung | Warmwasserbereitung | C43: Heating | DHW | D43: Verwarming/tapwaterbereiding
A44: Age of heating system | B44: Alter Heizungsanlage | C44: Age of heating system | D44: Bestaande Verwarmingsinstallatie
A45: Before 1980 | B45: Vor 1980 | C45: Before 1980 | D45: Voor 1980
A46: 1980 - 1994 | B46: 1980 - 1994 | C46: 1980 - 1994 | D46: 1980-1994
A47: From 1995 | B47: Ab 1995 | C47: From 1995 | D47: Vanaf 1994
A48: DHW production | B48: Warmwasserbereitung | C48: DHW production | D48: Tapwaterbereiding
A49: DHW type | B49: Art der Warmwasserbereitung | C49: DHW type | D49: Type tapwaterbereiding
A50: Building-central without circulation | B50: Gebäudezentral ohne Zirkulation | C50: Building-central without circulation | D50: Centrale opwekking zonder circulatieleiding
A51: Building-central with circulation | B51: Gebäudezentral mit Zirkulation | C51: Building-central with circulation | D51: Centrale opwekking met circulatieleiding
A52: Apartment-central | B52: Wohnungszentral | C52: Apartment-central | D52: Centrale opwekking
A53: Apartment-decentral | B53: Dezentral (Einzelversorgung) | C53: Apartment-decentral | D53: Decentrale opwekking
A54: Number of residents | B54: Anzahl Personen | C54: Number of residents | D54: Aantal Personen
A55: Demand period | B55: Bedarfszeitraum | C55: Demand period | D55: Periode waarin behoefte is
A56: All year | B56: Ganzjährig | C56: All year | D56: Gehele jaar
A57: 1 month / year | B57: 1 Monat / Jahr | C57: 1 month / year | D57: 1 Maand/Jaar
A58: 2 months / year | B58: 2 Monate / Jahr | C58: 2 months / year | D58: 2 Maanden/Jaar
A59: 3 months / year | B59: 3 Monate / Jahr | C59: 3 months / year | D59: 3 Maanden/Jaar
A60: 4 months / year | B60: 4 Monate / Jahr | C60: 4 months / year | D60: 4 Maanden/Jaar
A61: 5 months / year | B61: 5 Monate / Jahr | C61: 5 months / year | D61: 5 Maanden/Jaar
A62: 6 months / year | B62: 6 Monate / Jahr | C62: 6 months / year | D62: 6 Maanden/Jaar
A63: 7 months / year | B63: 7 Monate / Jahr | C63: 7 months / year | D63: 7 Maanden/Jaar
A64: 8 months / year | B64: 8 Monate / Jahr | C64: 8 months / year | D64: 8 Maanden/Jaar
A65: 9 months / year | B65: 9 Monate / Jahr | C65: 9 months / year | D65: 9 Maanden/Jaar
A66: 10 months / year | B66: 10 Monate / Jahr | C66: 10 months / year | D66: 10 Maanden/Jaar
A67: 11 months / year | B67: 11 Monate / Jahr | C67: 11 months / year | D67: 11 Maanden/Jaar
A68: Summary | B68: Ergebnis | C68: Summary | D68: Uitkomst
A69: Heat demand * | B69: Gebäudeheizlast * | C69: Heat demand * | D69: Transmissieverlies
A70: Calculation based on DIN EN 12831 Supplement 2, may 2010 | B70: Entspricht der Wärmeerzeuger-Nennleistung. Die Norm-Gebäudeheizlast kann höher ausfallen, da interne und solare Wärmeeinträge (Fremdwärmegewinne) nicht berücksichtigt sind. | C70: Calculation based on DIN EN 12831 Supplement 2, may 2010 | D70: Is volgens een normberekening, het officiele transmissieverlies kan hoger zijn omdat interne warmtelast en externe invloeden zoals zonlichttoetreding niet meegenomen zijn.
B71: Berechnung nach DIN EN 12831 Beiblatt 2 (Stand Mai 2012) | D71: Berekening volgens DIN EN 12831 Tapblad 2, stand mei 2012
A72: Consumption in l/year | B72: Verbrauch in Liter/Jahr | C72: Consumption in l/year | D72: Verbruik in l/jr
A73: Consumption in m³/year | B73: Verbrauch in m³/Jahr | C73: Consumption in m³/year | D73: Verbruik in m3/jr
A74: Consumption in kWh/year | B74: Verbrauch in kWh/Jahr | C74: Consumption in kWh/year | D74: Verbruik in kWh/jr
A75: Consumption in kg/year | B75: Verbrauch in kg/Jahr | C75: Consumption in kg/year | D75: Verbruik in kg/jr
A76: Number of persons | B76: Anzahl Personen | C76: Number of persons | D76: Aantal Personen
A77: Number of beds | B77: Anzahl Betten | C77: Number of beds | D77: Aantal bedden
A78: Number of employees | B78: Anzahl Beschäftigte | C78: Number of employees | D78: Aantal medewerkers
A79: Number of seats | B79: Anzahl Sitzplätze | C79: Number of seats | D79: Aantal zitplaatsen
